[Event "FIDE WYCC Open U14 2023"]
[Site "Montesilvano"]
[Date "2023.11.24"]
[Round "11.9"]
[White "Dotzer, Lukas"]
[Black "Lin, Leo"]
[Result "1-0"]
[ECO "B07"]
[WhiteElo "2339"]
[BlackElo "2097"]
[Annotator "RC"]
[PlyCount "121"]
[EventDate "2023.11.13"]
[EventType "swiss"]
[EventCountry "ITA"]
[SourceTitle "playchess.com"]
[Source "ChessBase"]
[SourceQuality "1"]
[TimeControl "40/5400+30:1800+30"]

1. e4 {[%emt 0:00:02]} d6 {[%emt 0:01:22]} 2. d4 {[%emt 0:00:05]} Nf6 {[%emt 0:00:06]} 3. Nc3 {[%emt 0:00:07]} e5 {[%emt 0:00:11]} 4. Nf3 {[%emt 0:00:27]} exd4 {[%emt 0:00:07]} 5. Nxd4 {[%emt 0:00:10]} Be7 {[%emt 0:00:08]} 6. Bf4 {[%emt 0:07:07]} O-O {[%emt 0:00:48]} 7. Qd2 {[%emt 0:01:16]} d5 {[%emt 0:00:09]} 8. exd5 {[%emt 0:22:41]} Nxd5 {[%emt 0:00:24]} 9. Nxd5 {[%emt 0:02:10]} Qxd5 {[%emt 0:00:14]} 10. Nb5 {[%emt 0:05:25]} Re8 {[%emt 0:24:22]} 11. Be2 {[%emt 0:06:51]} Qxd2+ {[%emt 0:01:54]} 12. Kxd2 {[%emt 0:03:22]} Na6 {[%emt 0:06:53]} 13. Nxc7 {[%emt 0:09:45]} Nxc7 {[%emt 0:00:05]} 14. Bxc7 {[%emt 0:00:07]} Bf5 {[%emt 0:01:44]} 15. Bd3 {[%emt 0:11:59]} Bxd3 {[%emt 0:00:53]} 16. cxd3 {[%emt 0:05:06]} Rac8 {[%emt 0:09:35]} 17. Rac1 {[%emt 0:07:06]} Bb4+ {[%emt 0:01:52]} 18. Kd1 {[%emt 0:00:05]} Re7 {[%emt 0:00:26]} 19. Bf4 {[%emt 0:02:49]} Rd8 {[%emt 0:03:03]} 20. Bd2 {[%emt 0:01:27]} Bd6 {[%emt 0:05:38]} 21. Rc4 {[%emt 0:08:20]} Red7 {[%emt 0:02:36]} 22. Rd4 {[%emt 0:00:30]} f6 {[%emt 0:01:36]} 23. Ke2 {[%emt 0:02:04]} Rc8 {[%emt 0:11:56]} 24. Rc1 {[%emt 0:00:53]} Re7+ {[%emt 0:00:30]} 25. Re4 {[%emt 0:02:23]} Rxc1 {[%emt 0:01:01]} 26. Bxc1 {[%emt 0:00:20]} Rc7 {[%emt 0:00:04]} 27. Rc4 {[%emt 0:00:42]} Re7+ {[%emt 0:00:07]} 28. Be3 {[%emt 0:00:15]} g5 {[%emt 0:02:38]} 29. Kf3 {[%emt 0:00:32]} h5 {[%emt 0:01:12]} 30. h3 {[%emt 0:00:30]} a6 {[%emt 0:01:13]} 31. Rc8+ {[%emt 0:00:40]} Kg7 {[%emt 0:01:12]} 32. g4 {[%emt 0:00:36]} h4 {[%emt 0:00:34]} 33. d4 {[%emt 0:00:33]} Kf7 {[%emt 0:02:08]} 34. Rh8 {[%emt 0:00:23]} Kg7 {[%emt 0:01:05]} 35. Rd8 {[%emt 0:00:21]} Bc7 36. Rc8 {[%emt 0:00:24]} Kf7 {[%emt 0:00:25]} 37. d5 {[%emt 0:00:45]} Bd6 {[%emt 0:02:07]} 38. Rd8 {[%emt 0:00:34]} Bc7 {[%emt 0:00:26]} 39. Rh8 {[%emt 0:00:16]} Kg7 {[%emt 0:02:24]} 40. Rc8 {[%emt 0:00:00]} Bd6 {[%emt 0:00:00]} 41. Bc5 {[%emt 0:14:43]} Bxc5 {[%emt 0:11:17]} 42. Rxc5 {[%emt 0:00:07]} Re5 {[%emt 0:05:46]} 43. b4 {[%emt 0:07:49]} b6 {[%emt 0:09:05]} 44. Rc7+ {[%emt 0:01:02]} Kg6 {[%emt 0:00:12]} 45. d6 {[%emt 0:00:43]} a5 {[%emt 0:14:53]} 46. d7 {[%emt 0:01:24]} Rd5 {[%emt 0:00:04]} 47. Ke4 {[%emt 0:02:03]} Rd6 {[%emt 0:02:18]} 48. b5 {[%emt 0:01:03]} a4 {[%emt 0:00:03]} 49. a3 {[%emt 0:02:58]} Rd1 {[%emt 0:00:06]} 50. Rb7 {[%emt 0:01:34]} Rd2 {[%emt 0:00:05]} 51. Rxb6 {[%emt 0:00:56]} Rxd7 {[%emt 0:00:03]} 52. Ra6 {[%emt 0:00:23]} Re7+ {[%emt 0:00:49]} 53. Kd5 {[%emt 0:00:57]} Re5+ {[%emt 0:02:51]} 54. Kc6 {[%emt 0:00:48]} Re6+ {[%emt 0:05:30]} 55. Kd7 {[%emt 0:00:40]} Re2 {[%emt 0:01:07]} 56. b6 {[%emt 0:00:39]} Rd2+ {[%emt 0:00:34]} 57. Kc7 {[%emt 0:00:23]} Rc2+ {[%emt 0:00:01]} 58. Kb8 {[%emt 0:00:16]} Rc3 {[%emt 0:00:25]} 59. b7 {[%emt 0:00:25]} Rxh3 {[%emt 0:00:47]} 60. Ka7 {[%emt 0:00:07]} Rb3 {[%emt 0:00:34]} 61. Rb6 {[%emt 0:00:09]} 1-0

[Event "FIDE WYCC Open U14 2023"]
[Site "Montesilvano"]
[Date "2023.11.24"]
[Round "11.10"]
[White "Kozlovic, Jernej"]
[Black "Kuziev, Miraziz"]
[Result "0-1"]
[ECO "C78"]
[WhiteElo "2263"]
[BlackElo "2053"]
[Annotator "RC"]
[PlyCount "78"]
[EventDate "2023.11.13"]
[EventType "swiss"]
[EventCountry "ITA"]
[SourceTitle "playchess.com"]
[Source "ChessBase"]
[SourceQuality "1"]
[TimeControl "40/5400+30:1800+30"]

1. e4 {[%emt 0:00:02]} e5 {[%emt 0:01:40]} 2. Nf3 {[%emt 0:00:17]} Nc6 {[%emt 0:00:04]} 3. Bb5 {[%emt 0:01:02]} a6 {[%emt 0:00:04]} 4. Ba4 {[%emt 0:00:18]} Nf6 {[%emt 0:00:05]} 5. O-O {[%emt 0:01:08]} b5 {[%emt 0:00:04]} 6. Bb3 {[%emt 0:00:17]} Bc5 {[%emt 0:00:07]} 7. a4 {[%emt 0:04:06]} Rb8 {[%emt 0:00:04]} 8. c3 {[%emt 0:00:37]} d6 {[%emt 0:00:05]} 9. d4 {[%emt 0:01:08]} Bb6 {[%emt 0:00:04]} 10. axb5 {[%emt 0:01:34]} axb5 {[%emt 0:00:06]} 11. Na3 {[%emt 0:00:59]} Bg4 {[%emt 0:10:50]} 12. Nxb5 {[%emt 0:01:51]} O-O {[%emt 0:05:43]} 13. Bc2 {[%emt 0:01:13]} Bxf3 {[%emt 0:02:39]} 14. gxf3 {[%emt 0:01:01]} Nh5 {[%emt 0:00:05]} 15. f4 {[%emt 0:01:52]} Qh4 {[%emt 0:14:17]} 16. Qf3 {[%emt 0:00:58]} Nxf4 {[%emt 0:03:02]} 17. Bxf4 {[%emt 0:00:50]} exf4 {[%emt 0:00:04]} 18. Kh1 {[%emt 0:02:58]} Ne7 {[%emt 0:00:24]} 19. Rg1 {[%emt 0:03:26]} Ng6 {[%emt 0:02:07]} 20. b4 {[%emt 0:05:01]} Qf6 {[%emt 0:02:17]} 21. Ra6 {[%emt 0:12:14]} Qe6 {[%emt 0:07:48]} 22. Bd3 {[%emt 0:15:31]} Kh8 {[%emt 0:05:09]} 23. Rga1 {[%emt 0:15:15]} Qf6 {[%emt 0:16:48]} 24. Qg4 {[%emt 0:09:56]} c6 {[%emt 0:10:14]} 25. Na7 {[%emt 0:04:57]} Bxa7 {[%emt 0:01:32]} 26. Rxa7 {[%emt 0:00:21]} c5 {[%emt 0:00:03]} 27. e5 {[%emt 0:09:27]} dxe5 {[%emt 0:01:40]} 28. R1a6 {[%emt 0:02:29]} Qd8 {[%emt 0:00:24]} 29. Bxg6 {[%emt 0:01:45]} hxg6 {[%emt 0:00:03]} 30. dxc5 {[%emt 0:01:51]} Qd2 {[%emt 0:02:43]} 31. Ra2 {[%emt 0:00:57]} Qxc3 {[%emt 0:02:07]} 32. Kg2 {[%emt 0:00:34]} Qxb4 {[%emt 0:01:37]} 33. c6 {[%emt 0:00:24]} Qc4 {[%emt 0:01:44]} 34. c7 {[%emt 0:00:37]} Rb1 {[%emt 0:01:30]} 35. Qe2 {[%emt 0:00:27]} Qc1 {[%emt 0:05:51]} 36. Rc2 {[%emt 0:00:32]} Qh1+ {[%emt 0:01:53]} 37. Kh3 {[%emt 0:00:01]} f3 {[%emt 0:00:10]} 38. Qxe5 {[%emt 0:01:00]} Qg2+ {[%emt 0:00:06]} 39. Kh4 {[%emt 0:00:06]} Rb4+ {[%emt 0:00:04]} 0-1

[Event "FIDE WYCC Open U14 2023"]
[Site "Montesilvano"]
[Date "2023.11.24"]
[Round "11.11"]
[White "Dinh Nho Kiet"]
[Black "Morkunas, Gustas"]
[Result "1-0"]
[ECO "D31"]
[WhiteElo "2253"]
[BlackElo "2052"]
[Annotator "RC"]
[PlyCount "161"]
[EventDate "2023.11.13"]
[EventType "swiss"]
[EventCountry "ITA"]
[SourceTitle "playchess.com"]
[Source "ChessBase"]
[SourceQuality "1"]
[TimeControl "40/5400+30:1800+30"]

1. d4 {[%emt 0:00:03]} d5 {[%emt 0:00:06]} 2. c4 {[%emt 0:00:12]} e6 {[%emt 0:00:06]} 3. Nc3 {[%emt 0:00:09]} dxc4 {[%emt 0:00:20]} 4. e4 {[%emt 0:00:50]} c5 {[%emt 0:00:47]} 5. d5 {[%emt 0:00:07]} exd5 {[%emt 0:00:37]} 6. Nxd5 {[%emt 0:00:07]} Nf6 {[%emt 0:01:04]} 7. Bxc4 {[%emt 0:00:02]} Be6 {[%emt 0:00:32]} 8. Qe2 {[%emt 0:00:06]} Bxd5 {[%emt 0:18:27]} 9. exd5+ {[%emt 0:01:36]} Be7 {[%emt 0:00:51]} 10. Nf3 {[%emt 0:17:39]} O-O {[%emt 0:02:34]} 11. O-O {[%emt 0:00:06]} Bd6 {[%emt 0:02:47]} 12. b3 {[%emt 0:06:18]} a6 {[%emt 0:05:12]} 13. a4 {[%emt 0:00:13]} Re8 {[%emt 0:00:13]} 14. Qd3 {[%emt 0:00:23]} Nbd7 {[%emt 0:00:23]} 15. Bb2 {[%emt 0:00:07]} Qc7 {[%emt 0:01:53]} 16. Rfe1 {[%emt 0:00:13]} h6 {[%emt 0:04:32]} 17. g3 {[%emt 0:10:39]} Rad8 {[%emt 0:07:11]} 18. Rad1 {[%emt 0:00:47]} Qb8 {[%emt 0:08:19]} 19. a5 {[%emt 0:07:52]} Rxe1+ {[%emt 0:10:22]} 20. Rxe1 {[%emt 0:02:05]} Re8 {[%emt 0:00:13]} 21. Re3 {[%emt 0:18:12]} Qd8 {[%emt 0:07:35]} 22. Re6 {[%emt 0:12:46]} Bf8 {[%emt 0:16:33]} 23. Bxf6 {[%emt 0:06:06]} Nxf6 {[%emt 0:01:13]} 24. Rb6 {[%emt 0:00:01]} Bd6 {[%emt 0:02:39]} 25. Rxb7 {[%emt 0:00:49]} Qxa5 {[%emt 0:01:01]} 26. Bxa6 {[%emt 0:00:11]} Qa1+ {[%emt 0:01:33]} 27. Kg2 {[%emt 0:00:18]} Qb2 {[%emt 0:01:03]} 28. Qd2 {[%emt 0:01:33]} Qa1 {[%emt 0:00:39]} 29. Bb5 {[%emt 0:01:41]} Ra8 {[%emt 0:00:19]} 30. Rb6 {[%emt 0:02:36]} Rd8 {[%emt 0:00:23]} 31. Bc4 {[%emt 0:01:23]} Qa7 {[%emt 0:02:11]} 32. Ra6 {[%emt 0:00:59]} Qe7 {[%emt 0:00:43]} 33. Qe3 {[%emt 0:03:21]} Qd7 {[%emt 0:01:17]} 34. Qd3 {[%emt 0:02:11]} Qe7 {[%emt 0:00:19]} 35. Ra2 {[%emt 0:02:03]} Re8 {[%emt 0:01:02]} 36. Bb5 {[%emt 0:01:05]} Rb8 {[%emt 0:00:11]} 37. Nd2 {[%emt 0:01:12]} Ng4 {[%emt 0:01:55]} 38. Qe4 {[%emt 0:02:18]} Nf6 {[%emt 0:01:13]} 39. Qxe7 {[%emt 0:00:15]} Bxe7 {[%emt 0:00:01]} 40. Bc4 {[%emt 0:00:00]} Rd8 {[%emt 0:00:00]} 41. Ra7 {[%emt 0:02:07]} Nxd5 {[%emt 0:08:58]} 42. Ne4 {[%emt 0:00:49]} Kf8 {[%emt 0:04:35]} 43. Bxd5 {[%emt 0:01:43]} Rxd5 {[%emt 0:01:06]} 44. Ra8+ {[%emt 0:00:02]} Bd8 {[%emt 0:00:54]} 45. Nxc5 {[%emt 0:00:58]} Ke7 {[%emt 0:02:40]} 46. Ra7+ {[%emt 0:00:49]} Ke8 {[%emt 0:01:38]} 47. Ne4 {[%emt 0:02:09]} f5 {[%emt 0:01:46]} 48. Nc3 {[%emt 0:00:04]} Rd3 {[%emt 0:01:00]} 49. Na4 {[%emt 0:02:01]} Be7 {[%emt 0:04:49]} 50. Rb7 {[%emt 0:00:13]} Kf8 {[%emt 0:01:58]} 51. Nb6 {[%emt 0:02:04]} Ke8 {[%emt 0:03:02]} 52. Nc4 {[%emt 0:00:46]} Rd5 {[%emt 0:00:17]} 53. b4 {[%emt 0:00:52]} g5 {[%emt 0:01:41]} 54. b5 {[%emt 0:00:46]} Rc5 {[%emt 0:01:09]} 55. Ne3 {[%emt 0:03:22]} f4 {[%emt 0:00:34]} 56. Ng4 {[%emt 0:02:34]} h5 {[%emt 0:00:26]} 57. Nh6 {[%emt 0:00:10]} fxg3 {[%emt 0:02:07]} 58. hxg3 {[%emt 0:00:40]} Rc2 {[%emt 0:00:29]} 59. Nf5 {[%emt 0:00:33]} Bc5 {[%emt 0:01:52]} 60. Ng7+ {[%emt 0:00:31]} Kf8 {[%emt 0:00:32]} 61. Ne6+ {[%emt 0:00:47]} Kg8 {[%emt 0:00:26]} 62. Rb8+ {[%emt 0:01:16]} Kf7 {[%emt 0:00:32]} 63. Nxg5+ {[%emt 0:00:04]} Kg6 {[%emt 0:00:27]} 64. Ne4 {[%emt 0:00:05]} Bd4 {[%emt 0:00:11]} 65. b6 {[%emt 0:05:24]} Rb2 {[%emt 0:00:45]} 66. b7 {[%emt 0:01:49]} Kg7 {[%emt 0:00:35]} 67. Rd8 {[%emt 0:00:36]} Be5 {[%emt 0:00:12]} 68. Nc5 {[%emt 0:00:20]} Rb5 {[%emt 0:00:25]} 69. Nd7 {[%emt 0:00:31]} Bxg3 {[%emt 0:00:12]} 70. Kxg3 {[%emt 0:00:25]} Rxb7 {[%emt 0:00:06]} 71. Nc5 {[%emt 0:00:05]} Rb4 {[%emt 0:00:14]} 72. Rd4 {[%emt 0:02:48]} Rb1 {[%emt 0:00:32]} 73. Nd3 {[%emt 0:00:22]} Rg1+ {[%emt 0:00:21]} 74. Kh2 {[%emt 0:00:14]} Rd1 {[%emt 0:00:23]} 75. Nf4 {[%emt 0:00:14]} Rf1 {[%emt 0:01:27]} 76. Kg2 {[%emt 0:00:12]} Ra1 {[%emt 0:00:07]} 77. Nxh5+ {[%emt 0:00:04]} Kg6 {[%emt 0:00:06]} 78. Ng3 {[%emt 0:00:05]} Ra3 {[%emt 0:00:05]} 79. f4 {[%emt 0:00:07]} Rb3 {[%emt 0:00:21]} 80. Rd6+ {[%emt 0:00:04]} Kf7 {[%emt 0:00:06]} 81. Kh3 {[%emt 0:00:05]} 1-0

[Event "FIDE WYCC Open U14 2023"]
[Site "Montesilvano"]
[Date "2023.11.24"]
[Round "11.12"]
[White "Ljepic, Andrej"]
[Black "Daaevik Wadhawan"]
[Result "1/2-1/2"]
[ECO "A45"]
[WhiteElo "2236"]
[BlackElo "1810"]
[Annotator "RC"]
[PlyCount "118"]
[EventDate "2023.11.13"]
[EventType "swiss"]
[EventCountry "ITA"]
[SourceTitle "playchess.com"]
[Source "ChessBase"]
[SourceQuality "1"]
[TimeControl "40/5400+30:1800+30"]

1. d4 {[%emt 0:00:08]} Nf6 {[%emt 0:00:08]} 2. Bg5 {[%emt 0:00:05]} c5 {[%emt 0:03:46]} 3. dxc5 {[%emt 0:06:19]} Qa5+ {[%emt 0:04:12]} 4. c3 {[%emt 0:00:49]} Qxc5 {[%emt 0:01:02]} 5. Bxf6 {[%emt 0:00:15]} gxf6 {[%emt 0:01:46]} 6. g3 {[%emt 0:01:55]} d5 {[%emt 0:08:49]} 7. Bg2 {[%emt 0:01:11]} e6 {[%emt 0:00:10]} 8. e3 {[%emt 0:02:24]} Be7 {[%emt 0:08:27]} 9. Ne2 {[%emt 0:00:50]} Nd7 {[%emt 0:04:01]} 10. O-O {[%emt 0:00:34]} Nb6 {[%emt 0:00:47]} 11. Nd2 {[%emt 0:04:03]} f5 {[%emt 0:09:54]} 12. Nf4 {[%emt 0:04:42]} Bd7 {[%emt 0:01:15]} 13. a4 {[%emt 0:01:46]} a5 {[%emt 0:02:37]} 14. Qb3 {[%emt 0:00:46]} Bd6 {[%emt 0:06:40]} 15. Nd3 {[%emt 0:04:19]} Qc7 {[%emt 0:00:14]} 16. Nf3 {[%emt 0:01:47]} Nc4 {[%emt 0:04:53]} 17. Qd1 {[%emt 0:01:41]} Be7 {[%emt 0:05:33]} 18. Nd4 {[%emt 0:02:27]} O-O {[%emt 0:03:38]} 19. Qh5 {[%emt 0:06:52]} Kh8 {[%emt 0:03:03]} 20. Rfc1 {[%emt 0:04:49]} Rac8 {[%emt 0:05:37]} 21. b3 {[%emt 0:02:42]} Ne5 {[%emt 0:01:57]} 22. Qe2 {[%emt 0:06:09]} Bf6 {[%emt 0:04:15]} 23. Nf4 {[%emt 0:03:30]} Ng6 {[%emt 0:03:01]} 24. Nh5 {[%emt 0:00:23]} Qd8 {[%emt 0:05:59]} 25. Nxf6 {[%emt 0:03:01]} Qxf6 {[%emt 0:00:02]} 26. Qd2 {[%emt 0:00:15]} b6 {[%emt 0:03:37]} 27. f4 {[%emt 0:00:32]} Qe7 {[%emt 0:01:33]} 28. Bf1 {[%emt 0:01:32]} Rc7 {[%emt 0:03:27]} 29. c4 {[%emt 0:01:06]} dxc4 {[%emt 0:00:03]} 30. Rxc4 {[%emt 0:00:29]} Rfc8 {[%emt 0:01:02]} 31. Rd1 {[%emt 0:01:35]} Rxc4 {[%emt 0:01:28]} 32. Bxc4 {[%emt 0:00:04]} Be8 {[%emt 0:00:04]} 33. h4 {[%emt 0:03:23]} Nf8 {[%emt 0:00:38]} 34. Nf3 {[%emt 0:00:17]} Nd7 {[%emt 0:01:22]} 35. Qd6 {[%emt 0:02:44]} Qxd6 {[%emt 0:01:24]} 36. Rxd6 Kg7 {[%emt 0:01:20]} 37. Bb5 {[%emt 0:00:30]} Rc7 {[%emt 0:00:16]} 38. Nd4 {[%emt 0:01:17]} Kf8 {[%emt 0:00:50]} 39. Bxd7 {[%emt 0:00:30]} Bxd7 {[%emt 0:00:18]} 40. Rxb6 {[%emt 0:00:00]} Ke7 {[%emt 0:00:00]} 41. Kf2 {[%emt 0:00:33]} Rc5 {[%emt 0:09:21]} 42. Ke2 {[%emt 0:02:36]} Kd8 {[%emt 0:02:24]} 43. Rb8+ {[%emt 0:00:33]} Ke7 {[%emt 0:02:28]} 44. Rh8 {[%emt 0:00:35]} Be8 {[%emt 0:01:25]} 45. Kd2 {[%emt 0:03:04]} Rc8 {[%emt 0:02:02]} 46. h5 {[%emt 0:00:39]} h6 {[%emt 0:00:29]} 47. Rg8 {[%emt 0:02:13]} Rc7 {[%emt 0:05:31]} 48. g4 {[%emt 0:06:00]} fxg4 {[%emt 0:00:16]} 49. Rxg4 {[%emt 0:00:06]} Rc5 {[%emt 0:00:14]} 50. Rh4 {[%emt 0:01:10]} f6 {[%emt 0:02:01]} 51. e4 {[%emt 0:00:41]} Bf7 {[%emt 0:04:21]} 52. e5 {[%emt 0:01:38]} fxe5 {[%emt 0:01:25]} 53. fxe5 {[%emt 0:00:03]} Be8 {[%emt 0:00:03]} 54. Re4 {[%emt 0:13:58]} Bxh5 {[%emt 0:00:04]} 55. Rh4 {[%emt 0:00:03]} Be8 {[%emt 0:00:12]} 56. Rxh6 {[%emt 0:01:33]} Rxe5 {[%emt 0:00:06]} 57. Rh7+ {[%emt 0:02:23]} Kd6 {[%emt 0:00:13]} 58. Ra7 {[%emt 0:00:13]} Bd7 {[%emt 0:01:02]} 59. Kd3 {[%emt 0:01:01]} Rc5 {[%emt 0:03:19]} 1/2-1/2

[Event "FIDE WYCC Open U14 2023"]
[Site "Montesilvano"]
[Date "2023.11.24"]
[Round "11.13"]
[White "kiladze, Luka"]
[Black "Nurgaliyev, Sauat"]
[Result "1-0"]
[ECO "A45"]
[WhiteElo "2145"]
[BlackElo "2235"]
[Annotator "RC"]
[PlyCount "119"]
[EventDate "2023.11.13"]
[EventType "swiss"]
[EventCountry "ITA"]
[SourceTitle "playchess.com"]
[Source "ChessBase"]
[SourceQuality "1"]
[TimeControl "40/5400+30:1800+30"]

1. d4 {[%emt 0:00:03]} Nf6 {[%emt 0:01:45]} 2. Bf4 {[%emt 0:00:04]} g6 {[%emt 0:01:26]} 3. Nc3 {[%emt 0:00:05]} d5 {[%emt 0:00:04]} 4. e3 {[%emt 0:00:05]} Bg7 {[%emt 0:00:39]} 5. h4 {[%emt 0:00:05]} c5 {[%emt 0:01:42]} 6. Nb5 {[%emt 0:04:21]} Na6 {[%emt 0:00:52]} 7. c3 {[%emt 0:02:52]} O-O {[%emt 0:06:41]} 8. Be2 {[%emt 0:05:19]} h5 {[%emt 0:03:27]} 9. Nf3 {[%emt 0:01:09]} Bg4 {[%emt 0:00:59]} 10. Ne5 {[%emt 0:00:40]} Bxe2 {[%emt 0:04:23]} 11. Qxe2 {[%emt 0:01:57]} Qb6 {[%emt 0:02:13]} 12. a4 {[%emt 0:03:03]} cxd4 {[%emt 0:06:38]} 13. exd4 {[%emt 0:00:59]} Nb8 {[%emt 0:08:39]} 14. O-O {[%emt 0:08:30]} a6 {[%emt 0:03:50]} 15. Na3 {[%emt 0:01:16]} Nc6 {[%emt 0:02:00]} 16. f3 {[%emt 0:15:29]} Nxe5 17. Bxe5 {[%emt 0:02:24]} Rfe8 {[%emt 0:02:58]} 18. Nb1 {[%emt 0:07:28]} Bh6 {[%emt 0:03:45]} 19. a5 {[%emt 0:02:26]} Qe6 {[%emt 0:03:06]} 20. Na3 {[%emt 0:06:45]} Nd7 {[%emt 0:10:03]} 21. Rfe1 {[%emt 0:00:45]} f6 {[%emt 0:03:38]} 22. Bg3 {[%emt 0:00:54]} Qf7 {[%emt 0:04:36]} 23. Qe6 {[%emt 0:02:35]} Qxe6 {[%emt 0:02:11]} 24. Rxe6 {[%emt 0:00:07]} Kf7 {[%emt 0:00:29]} 25. Rae1 {[%emt 0:01:44]} Bd2 {[%emt 0:02:44]} 26. R1e2 {[%emt 0:02:37]} Bc1 {[%emt 0:04:43]} 27. Nc2 {[%emt 0:01:51]} Bxb2 {[%emt 0:03:58]} 28. Be1 {[%emt 0:00:36]} Ne5 {[%emt 0:01:56]} 29. dxe5 {[%emt 0:01:22]} Kxe6 {[%emt 0:00:29]} 30. Nd4+ {[%emt 0:00:05]} Kf7 {[%emt 0:00:48]} 31. e6+ {[%emt 0:00:05]} Kf8 {[%emt 0:00:02]} 32. Rxb2 {[%emt 0:00:05]} Rec8 {[%emt 0:06:42]} 33. Rxb7 {[%emt 0:01:53]} Rc5 {[%emt 0:00:05]} 34. Nb3 {[%emt 0:01:32]} Rc6 {[%emt 0:00:08]} 35. Rb6 {[%emt 0:00:17]} Rac8 {[%emt 0:00:00]} 36. Kf1 {[%emt 0:04:54]} g5 {[%emt 0:02:31]} 37. hxg5 {[%emt 0:02:22]} fxg5 {[%emt 0:00:03]} 38. Ke2 {[%emt 0:00:34]} Kg7 {[%emt 0:03:19]} 39. Nd4 {[%emt 0:03:05]} Rxb6 {[%emt 0:02:48]} 40. axb6 {[%emt 0:00:00]} Rb8 {[%emt 0:00:00]} 41. Bf2 {[%emt 0:00:14]} Rxb6 {[%emt 0:00:27]} 42. Nf5+ {[%emt 0:00:06]} Kf6 {[%emt 0:00:02]} 43. Bxb6 {[%emt 0:00:08]} Kxf5 {[%emt 0:00:02]} 44. Kd3 {[%emt 0:00:53]} Kxe6 {[%emt 0:01:57]} 45. Kd4 {[%emt 0:00:50]} g4 {[%emt 0:01:54]} 46. fxg4 {[%emt 0:00:41]} hxg4 {[%emt 0:00:13]} 47. g3 {[%emt 0:00:30]} Kd6 {[%emt 0:01:36]} 48. Bc5+ {[%emt 0:00:06]} Ke6 {[%emt 0:00:24]} 49. Bb4 {[%emt 0:00:14]} Kf5 {[%emt 0:01:18]} 50. Kxd5 {[%emt 0:00:05]} e5 {[%emt 0:00:06]} 51. c4 {[%emt 0:00:06]} e4 {[%emt 0:00:03]} 52. c5 {[%emt 0:00:13]} e3 {[%emt 0:00:20]} 53. c6 {[%emt 0:00:05]} e2 {[%emt 0:00:05]} 54. c7 {[%emt 0:00:06]} e1=Q {[%emt 0:00:05]} 55. Bxe1 {[%emt 0:00:04]} a5 {[%emt 0:00:16]} 56. c8=Q+ {[%emt 0:00:11]} Kf6 {[%emt 0:00:14]} 57. Qe6+ {[%emt 0:00:24]} Kg7 {[%emt 0:00:22]} 58. Bc3+ {[%emt 0:00:05]} Kh7 {[%emt 0:00:09]} 59. Qf6 {[%emt 0:00:07]} a4 {[%emt 0:00:14]} 60. Qg7# {[%emt 0:00:03]} 1-0

[Event "FIDE WYCC Open U14 2023"]
[Site "Montesilvano"]
[Date "2023.11.24"]
[Round "11.14"]
[White "Gkavardinas, Antonios"]
[Black "Coicev, Matei-Andrei"]
[Result "0-1"]
[ECO "B90"]
[WhiteElo "2230"]
[BlackElo "2006"]
[Annotator "RC"]
[PlyCount "80"]
[EventDate "2023.11.13"]
[EventType "swiss"]
[EventCountry "ITA"]
[SourceTitle "playchess.com"]
[Source "ChessBase"]
[SourceQuality "1"]
[TimeControl "40/5400+30:1800+30"]

1. e4 {[%emt 0:00:03]} c5 {[%emt 0:00:06]} 2. Nf3 {[%emt 0:00:05]} d6 {[%emt 0:00:07]} 3. d4 {[%emt 0:00:05]} Nf6 {[%emt 0:00:19]} 4. Nc3 {[%emt 0:00:12]} cxd4 {[%emt 0:00:05]} 5. Nxd4 {[%emt 0:00:06]} a6 {[%emt 0:00:05]} 6. Be3 {[%emt 0:00:13]} Ng4 {[%emt 0:00:07]} 7. Bc1 {[%emt 0:00:46]} Nf6 {[%emt 0:00:05]} 8. f3 {[%emt 0:00:23]} e6 {[%emt 0:00:05]} 9. Be3 {[%emt 0:00:14]} b5 {[%emt 0:00:25]} 10. Qd2 {[%emt 0:00:48]} Nbd7 {[%emt 0:00:10]} 11. g4 {[%emt 0:00:57]} b4 {[%emt 0:00:09]} 12. Nce2 {[%emt 0:01:02]} h6 {[%emt 0:00:08]} 13. O-O-O {[%emt 0:01:46]} Qc7 {[%emt 0:00:50]} 14. h4 {[%emt 0:06:04]} d5 {[%emt 0:00:22]} 15. exd5 {[%emt 0:01:56]} Nxd5 {[%emt 0:00:40]} 16. Nf4 {[%emt 0:02:26]} N7b6 {[%emt 0:01:39]} 17. Nxd5 {[%emt 0:05:02]} Nxd5 {[%emt 0:01:58]} 18. Bd3 {[%emt 0:04:40]} Nxe3 {[%emt 0:15:37]} 19. Qxe3 {[%emt 0:00:10]} Bc5 {[%emt 0:03:14]} 20. Be4 {[%emt 0:17:27]} Bb7 {[%emt 0:04:42]} 21. Bxb7 {[%emt 0:11:06]} Qxb7 {[%emt 0:00:28]} 22. Qe5 {[%emt 0:01:39]} Bxd4 {[%emt 0:02:54]} 23. Qxd4 {[%emt 0:00:50]} O-O {[%emt 0:07:01]} 24. f4 {[%emt 0:04:00]} Rac8 {[%emt 0:03:33]} 25. Qd3 {[%emt 0:05:33]} Rc5 {[%emt 0:02:59]} 26. Rhe1 {[%emt 0:10:44]} Rfc8 {[%emt 0:03:22]} 27. Rd2 {[%emt 0:02:17]} Rd5 {[%emt 0:03:11]} 28. Qe4 {[%emt 0:03:31]} Rxd2 {[%emt 0:06:02]} 29. Kxd2 {[%emt 0:01:16]} Qb6 {[%emt 0:02:17]} 30. Re3 {[%emt 0:08:01]} Qa5 {[%emt 0:01:43]} 31. Kc1 {[%emt 0:07:06]} Qxa2 {[%emt 0:02:53]} 32. Qxb4 {[%emt 0:00:08]} Qa1+ {[%emt 0:00:10]} 33. Kd2 Qg1 {[%emt 0:03:49]} 34. Qe4 {[%emt 0:01:30]} Qxg4 {[%emt 0:01:30]} 35. c4 {[%emt 0:01:02]} Qxh4 {[%emt 0:01:12]} 36. b4 {[%emt 0:01:07]} Qf2+ {[%emt 0:00:48]} 37. Re2 {[%emt 0:01:02]} Qf1 {[%emt 0:02:29]} 38. c5 {[%emt 0:01:26]} Qa1 {[%emt 0:02:41]} 39. Qc4 {[%emt 0:01:04]} Qa4 {[%emt 0:02:22]} 40. Rxe6 {[%emt 0:00:00]} Qd7+ {[%emt 0:00:00]} 0-1